[Event "*** MasterClass Titled Tuesday Blitz"]
[Site "Chess.com"]
[Date "2017.12.05"]
[Round "5"]
[White "ChessMavenYeti"]
[Black "Saitama_Hero"]
[Result "1/2-1/2"]
[WhiteElo "2064"]
[BlackElo "2100"]
[TimeControl "180+2"]
[EndTime "15:18:05 PST"]
[Termination "Game drawn by agreement"]

1. d4 {[%clk 0:03:01]} 1... Nf6 {[%clk 0:02:57.1]} 2. c4 {[%clk 0:03:02.1]} 2...
g6 {[%clk 0:02:57.4]} 3. Nc3 {[%clk 0:03:02.2]} 3... d5 {[%clk 0:02:58.9]} 4.
Nf3 {[%clk 0:03:03]} 4... Bg7 {[%clk 0:02:58.6]} 5. Bg5 {[%clk 0:03:00.7]} 5...
Ne4 {[%clk 0:02:54.4]} 6. cxd5 {[%clk 0:03:02.2]} 6... Nxg5 {[%clk 0:02:54.7]}
7. Nxg5 {[%clk 0:03:04.1]} 7... e6 {[%clk 0:02:55.7]} 8. Qd2 {[%clk 0:03:05.6]}
8... h6 {[%clk 0:02:54.2]} 9. Nf3 {[%clk 0:03:06.3]} 9... exd5 {[%clk
0:02:54.9]} 10. e3 {[%clk 0:03:06.5]} 10... O-O {[%clk 0:02:54.8]} 11. Bd3
{[%clk 0:03:08.1]} 11... c6 {[%clk 0:02:56]} 12. O-O {[%clk 0:03:09.3]} 12...
Qe7 {[%clk 0:02:57.1]} 13. Rab1 {[%clk 0:03:09.6]} 13... Nd7 {[%clk 0:02:56.9]}
14. b4 {[%clk 0:03:10.7]} 14... a6 {[%clk 0:02:41.7]} 15. a4 {[%clk 0:03:10.8]}
15... Nb6 {[%clk 0:02:40.5]} 16. b5 {[%clk 0:03:07.9]} 16... cxb5 {[%clk
0:02:42.4]} 17. axb5 {[%clk 0:03:08.8]} 17... a5 {[%clk 0:02:43.8]} 18. Rfc1
{[%clk 0:03:00.7]} 18... Be6 {[%clk 0:02:40.3]} 19. Ne5 {[%clk 0:02:52.1]} 19...
Rfc8 {[%clk 0:02:14.4]} 20. Rc2 {[%clk 0:02:44.9]} 20... Qd6 {[%clk 0:02:03.8]}
21. f4 {[%clk 0:02:39.3]} 21... Nc4 {[%clk 0:01:47.2]} 22. Nxc4 {[%clk
0:02:36.7]} 22... dxc4 {[%clk 0:01:49.1]} 23. Be4 {[%clk 0:02:33.7]} 23... Rab8
{[%clk 0:01:46.6]} 24. b6 {[%clk 0:02:32.4]} 24... Bf6 {[%clk 0:01:33.1]} 25.
Bf3 {[%clk 0:02:28.7]} 25... Bd8 {[%clk 0:01:30.9]} 26. Ne4 {[%clk 0:02:28.3]}
26... Qe7 {[%clk 0:01:26.6]} 27. Qxa5 {[%clk 0:02:28.6]} 27... Bf5 {[%clk
0:01:26.1]} 28. Qe5 {[%clk 0:02:23.7]} 28... Qa3 {[%clk 0:01:23.4]} 29. Kh1
{[%clk 0:02:03.5]} 29... Bh4 {[%clk 0:01:00.7]} 30. Rxc4 {[%clk 0:01:58.4]}
30... Re8 {[%clk 0:00:57.2]} 31. Qc5 {[%clk 0:01:18.1]} 31... Qxe3 {[%clk
0:00:39.8]} 32. Rc3 {[%clk 0:00:53.4]} 32... Qxf4 {[%clk 0:00:26.5]} 33. g3
{[%clk 0:00:54.6]} 33... Rbc8 {[%clk 0:00:20.8]} 34. Qxc8 {[%clk 0:00:46.7]}
34... Qxf3+ {[%clk 0:00:20.6]} 35. Rxf3 {[%clk 0:00:46.4]} 35... Rxc8 {[%clk
0:00:22.5]} 36. Nd6 {[%clk 0:00:42.4]} 36... Bxb1 {[%clk 0:00:20.9]} 37. Nxc8
{[%clk 0:00:42.6]} 37... Be4 {[%clk 0:00:22.2]} 38. Kg2 {[%clk 0:00:36.1]} 38...
Bd8 {[%clk 0:00:22.7]} 39. Kf2 {[%clk 0:00:36.7]} 39... Bxf3 {[%clk 0:00:23.2]}
40. Kxf3 {[%clk 0:00:38.6]} 40... Kf8 {[%clk 0:00:23.4]} 41. Ke4 {[%clk
0:00:39]} 41... Ke8 {[%clk 0:00:23.4]} 42. Nd6+ {[%clk 0:00:37.7]} 42... Ke7
{[%clk 0:00:24.5]} 43. Nc4 {[%clk 0:00:35]} 43... Ke6 {[%clk 0:00:21.1]} 44. d5+
{[%clk 0:00:35]} 44... Kd7 {[%clk 0:00:22.5]} 45. Ke5 {[%clk 0:00:34.3]} 45...
f6+ {[%clk 0:00:22.7]} 46. Kd4 {[%clk 0:00:35.5]} 46... Be7 {[%clk 0:00:22.8]}
47. Na5 {[%clk 0:00:35.9]} 47... Kc8 {[%clk 0:00:18.6]} 48. Nc4 {[%clk
0:00:34.1]} 48... Kd7 {[%clk 0:00:18.5]} 49. Na5 {[%clk 0:00:35.3]} 49... Kc8
{[%clk 0:00:19.1]} 50. h3 {[%clk 0:00:34.6]} 50... Bd6 {[%clk 0:00:18.5]} 51. g4
{[%clk 0:00:35.4]} 51... f5 {[%clk 0:00:19]} 52. gxf5 {[%clk 0:00:36.3]} 52...
gxf5 {[%clk 0:00:20.9]} 53. Nc4 {[%clk 0:00:37.2]} 53... Bb8 {[%clk 0:00:19.6]}
54. d6 {[%clk 0:00:34.7]} 54... Kd7 {[%clk 0:00:20.1]} 55. Ke5 {[%clk
0:00:35.6]} 55... f4 {[%clk 0:00:19.7]} 56. Kxf4 {[%clk 0:00:23.8]} 56... Bxd6+
{[%clk 0:00:21.1]} 57. Nxd6 {[%clk 0:00:21.5]} 57... Kxd6 {[%clk 0:00:21]} 58.
Kf5 {[%clk 0:00:23.4]} 58... Kc6 {[%clk 0:00:22.5]} 59. Kg6 {[%clk 0:00:25.1]}
59... Kxb6 {[%clk 0:00:23.8]} 60. Kxh6 {[%clk 0:00:26.8]} 60... Kc6 {[%clk
0:00:24.2]} 61. Kg6 {[%clk 0:00:28.4]} 61... b5 {[%clk 0:00:25.5]} 62. h4 {[%clk
0:00:30]} 62... b4 {[%clk 0:00:27.4]} 63. h5 {[%clk 0:00:31.6]} 63... b3 {[%clk
0:00:28.6]} 64. h6 {[%clk 0:00:33.2]} 64... b2 {[%clk 0:00:30.1]} 65. h7 {[%clk
0:00:34.5]} 65... b1=Q+ {[%clk 0:00:31.7]} 66. Kg7 {[%clk 0:00:36]} 66... Qg1+
{[%clk 0:00:32.4]} 67. Kh8 {[%clk 0:00:36.5]} 1/2-1/2

[Event "*** MasterClass Titled Tuesday Blitz"]
[Site "Chess.com"]
[Date "2017.12.05"]
[Round "5"]
[White "FMJoseHerrera"]
[Black "AbdAlAgathos"]
[Result "1-0"]
[WhiteElo "2444"]
[BlackElo "2298"]
[TimeControl "180+2"]
[EndTime "15:18:14 PST"]
[Termination "FMJoseHerrera won by resignation"]

1. Nf3 {[%clk 0:03:00.5]} 1... Nf6 {[%clk 0:03:00.7]} 2. g3 {[%clk 0:03:02.4]}
2... g6 {[%clk 0:03:01.8]} 3. Bg2 {[%clk 0:03:04.1]} 3... Bg7 {[%clk 0:03:02.9]}
4. h4 {[%clk 0:03:06]} 4... h6 {[%clk 0:02:54.2]} 5. d3 {[%clk 0:03:07.9]} 5...
d5 {[%clk 0:02:53.7]} 6. O-O {[%clk 0:03:03.1]} 6... Nc6 {[%clk 0:02:52.3]} 7.
Nc3 {[%clk 0:03:02.1]} 7... d4 {[%clk 0:02:44.8]} 8. Nb1 {[%clk 0:03:02.9]} 8...
Bg4 {[%clk 0:02:39.6]} 9. Re1 {[%clk 0:02:49.6]} 9... Qd7 {[%clk 0:02:36.5]} 10.
Nbd2 {[%clk 0:02:47.6]} 10... O-O-O {[%clk 0:02:36]} 11. b4 {[%clk 0:02:47.8]}
11... Nd5 {[%clk 0:02:33.9]} 12. Ne4 {[%clk 0:02:41.3]} 12... Nc3 {[%clk
0:02:19.4]} 13. Nxc3 {[%clk 0:02:36.9]} 13... dxc3 {[%clk 0:02:21.3]} 14. b5
{[%clk 0:02:36.2]} 14... Bxf3 {[%clk 0:01:55.1]} 15. exf3 {[%clk 0:02:24.9]}
15... Nd4 {[%clk 0:01:55.6]} 16. a4 {[%clk 0:02:15.1]} 16... g5 {[%clk 0:01:51]}
17. hxg5 {[%clk 0:02:06]} 17... hxg5 {[%clk 0:01:51]} 18. Bxg5 {[%clk
0:02:07.9]} 18... Rh5 {[%clk 0:01:06.3]} 19. Rxe7 {[%clk 0:01:32.4]} 19... Qf5
{[%clk 0:01:05.5]} 20. Bf4 {[%clk 0:01:16.1]} 20... Ne6 {[%clk 0:00:51.7]} 21.
b6 {[%clk 0:00:34.3]} 21... axb6 {[%clk 0:00:43.8]} 22. a5 {[%clk 0:00:32.9]}
22... bxa5 {[%clk 0:00:34.3]} 23. Bxc7 {[%clk 0:00:19.9]} 23... Nxc7 {[%clk
0:00:31.9]} 24. g4 {[%clk 0:00:21.4]} 24... Qg5 {[%clk 0:00:22.8]} 25. Rxc7+
{[%clk 0:00:20.2]} 25... Kxc7 {[%clk 0:00:24.7]} 26. gxh5 {[%clk 0:00:21.6]}
26... Bd4 {[%clk 0:00:22]} 27. f4 {[%clk 0:00:18.4]} 27... Qxf4 {[%clk
0:00:21.4]} 28. Qf3 {[%clk 0:00:19.8]} 28... Qxf3 {[%clk 0:00:19.7]} 29. Bxf3
{[%clk 0:00:21.7]} 29... b6 {[%clk 0:00:21.2]} 30. Ra4 {[%clk 0:00:22.3]} 30...
Bc5 {[%clk 0:00:19.9]} 31. Rc4 {[%clk 0:00:22.8]} 31... Kd6 {[%clk 0:00:20.4]}
32. Rxc3 {[%clk 0:00:24]} 32... b5 {[%clk 0:00:21.5]} 33. Rb3 {[%clk 0:00:25.1]}
33... b4 {[%clk 0:00:22.8]} 34. c4 {[%clk 0:00:26.1]} 34... a4 {[%clk
0:00:22.6]} 35. Rb1 {[%clk 0:00:27.5]} 35... b3 {[%clk 0:00:22.6]} 36. Bd1
{[%clk 0:00:28.3]} 36... Bd4 {[%clk 0:00:23.6]} 37. Kf1 {[%clk 0:00:29.2]} 37...
Kc5 {[%clk 0:00:24.4]} 38. Bxb3 {[%clk 0:00:29.8]} 38... axb3 {[%clk 0:00:25.5]}
39. Rxb3 {[%clk 0:00:31.7]} 39... Rh8 {[%clk 0:00:26]} 40. Rb5+ {[%clk 0:00:33]}
40... Kc6 {[%clk 0:00:27.2]} 41. Ke2 {[%clk 0:00:34]} 41... Rh6 {[%clk
0:00:27.3]} 42. Rf5 {[%clk 0:00:34.9]} 42... f6 {[%clk 0:00:26.4]} 43. Kf3
{[%clk 0:00:35.4]} 43... Rh8 {[%clk 0:00:26.9]} 44. Ke4 {[%clk 0:00:36.7]} 44...
Rd8 {[%clk 0:00:23.9]} 45. h6 {[%clk 0:00:36.3]} 45... Ba1 {[%clk 0:00:23.4]}
46. h7 {[%clk 0:00:36.9]} 46... Rd4+ {[%clk 0:00:22.3]} 47. Ke3 {[%clk
0:00:36.6]} 47... Rh4 {[%clk 0:00:16.1]} 48. Ra5 {[%clk 0:00:32.3]} 48... Bd4+
{[%clk 0:00:15.8]} 49. Kf3 {[%clk 0:00:33.4]} 49... Rxh7 {[%clk 0:00:17.1]} 50.
Ke4 {[%clk 0:00:34.9]} 50... Rd7 {[%clk 0:00:16.8]} 51. f4 {[%clk 0:00:35.7]}
51... Bb6 {[%clk 0:00:16.1]} 52. Ra3 {[%clk 0:00:33.6]} 52... Rd4+ {[%clk
0:00:15.4]} 53. Kf5 {[%clk 0:00:35]} 53... Rd6 {[%clk 0:00:15.6]} 54. Rb3 {[%clk
0:00:35.7]} 54... Bd4 {[%clk 0:00:17]} 55. Rb5 {[%clk 0:00:36.3]} 55... Bc3
{[%clk 0:00:17.9]} 56. Rb8 {[%clk 0:00:24.1]} 56... Rxd3 {[%clk 0:00:18.7]} 57.
Rc8+ {[%clk 0:00:24.9]} 57... Kd6 {[%clk 0:00:20]} 58. Rd8+ {[%clk 0:00:25.6]}
58... Kc5 {[%clk 0:00:21.3]} 59. Rxd3 {[%clk 0:00:27.5]} 59... Kxc4 {[%clk
0:00:23.2]} 60. Rd8 {[%clk 0:00:28.2]} 60... Ba1 {[%clk 0:00:13.1]} 61. Ke6
{[%clk 0:00:26.9]} 1-0

[Event "*** MasterClass Titled Tuesday Blitz"]
[Site "Chess.com"]
[Date "2017.12.05"]
[Round "5"]
[White "Rsnr"]
[Black "Alexander_Moskalenko"]
[Result "0-1"]
[WhiteElo "2631"]
[BlackElo "2750"]
[TimeControl "180+2"]
[EndTime "15:18:18 PST"]
[Termination "Alexander_Moskalenko won by resignation"]

1. d4 {[%clk 0:03:01]} 1... Nf6 {[%clk 0:03:01.9]} 2. c4 {[%clk 0:03:02.1]} 2...
c5 {[%clk 0:03:03.8]} 3. d5 {[%clk 0:03:03]} 3... b5 {[%clk 0:03:05.5]} 4. Qc2
{[%clk 0:03:04.5]} 4... a6 {[%clk 0:03:07.4]} 5. e4 {[%clk 0:02:58.2]} 5... bxc4
{[%clk 0:03:08.6]} 6. Bxc4 {[%clk 0:02:57.8]} 6... d6 {[%clk 0:03:09.8]} 7. Nf3
{[%clk 0:02:59.2]} 7... g6 {[%clk 0:03:08]} 8. O-O {[%clk 0:02:59.9]} 8... Bg4
{[%clk 0:03:09.6]} 9. Nfd2 {[%clk 0:03:00.2]} 9... Bg7 {[%clk 0:02:59]} 10. Nc3
{[%clk 0:03:01.6]} 10... O-O {[%clk 0:02:58.9]} 11. h3 {[%clk 0:03:02.6]} 11...
Bd7 {[%clk 0:02:59.4]} 12. Be2 {[%clk 0:02:54.7]} 12... Ra7 {[%clk 0:02:57.3]}
13. Nc4 {[%clk 0:02:55.8]} 13... Bb5 {[%clk 0:02:57]} 14. Bf4 {[%clk 0:02:53.9]}
14... Nbd7 {[%clk 0:02:56.9]} 15. Rfd1 {[%clk 0:02:52]} 15... Qc7 {[%clk
0:02:56.6]} 16. Rac1 {[%clk 0:02:49.7]} 16... Rb8 {[%clk 0:02:56.4]} 17. b3
{[%clk 0:02:45.5]} 17... Ne8 {[%clk 0:02:57.6]} 18. Qd2 {[%clk 0:02:33.6]} 18...
Nb6 {[%clk 0:02:48.8]} 19. Ne3 {[%clk 0:02:34.6]} 19... Nd7 {[%clk 0:02:47.9]}
20. Nc4 {[%clk 0:02:31.7]} 20... Bd4 {[%clk 0:02:43.2]} 21. Be3 {[%clk
0:02:31.2]} 21... Bxe3 {[%clk 0:02:43.3]} 22. Qxe3 {[%clk 0:02:32.2]} 22... Nb6
{[%clk 0:02:39.5]} 23. Nd2 {[%clk 0:02:32.4]} 23... Bxe2 {[%clk 0:02:31.6]} 24.
Qxe2 {[%clk 0:02:34.3]} 24... Nd7 {[%clk 0:02:33.3]} 25. f4 {[%clk 0:02:28.6]}
25... Ng7 {[%clk 0:02:34.5]} 26. Qe3 {[%clk 0:02:26.1]} 26... e5 {[%clk
0:02:34.6]} 27. dxe6 {[%clk 0:02:25.6]} 27... fxe6 {[%clk 0:02:34.5]} 28. Nc4
{[%clk 0:02:26.6]} 28... Ne8 {[%clk 0:02:33.5]} 29. Qd3 {[%clk 0:02:24.1]} 29...
Rb4 {[%clk 0:02:30.1]} 30. Nxd6 {[%clk 0:02:14]} 30... Nxd6 {[%clk 0:02:17.1]}
31. Qxd6 {[%clk 0:02:15.9]} 31... Qxd6 {[%clk 0:02:18.5]} 32. Rxd6 {[%clk
0:02:17.8]} 32... Kf7 {[%clk 0:02:13.9]} 33. Rcd1 {[%clk 0:02:19]} 33... Ke7
{[%clk 0:01:52.5]} 34. Kf2 {[%clk 0:02:17.5]} 34... c4 {[%clk 0:01:50.2]} 35.
R1d4 {[%clk 0:01:32.7]} 35... e5 {[%clk 0:01:36.8]} 36. fxe5 {[%clk 0:01:06.6]}
36... Nxe5 {[%clk 0:01:36.6]} 37. R6d5 {[%clk 0:01:07.7]} 37... Ke6 {[%clk
0:01:34.7]} 38. Ke3 {[%clk 0:01:02.4]} 38... a5 {[%clk 0:01:29.8]} 39. Na4
{[%clk 0:00:42.4]} 39... cxb3 {[%clk 0:01:28.8]} 40. Nc5+ {[%clk 0:00:43.5]}
40... Kf6 {[%clk 0:01:26.5]} 41. axb3 {[%clk 0:00:41.6]} 41... h5 {[%clk
0:01:12.9]} 42. Rd6+ {[%clk 0:00:34.1]} 42... Kg5 {[%clk 0:01:12.2]} 43. Ne6+
{[%clk 0:00:24.6]} 43... Kh4 {[%clk 0:01:12.2]} 44. Nf4 {[%clk 0:00:23]} 44...
Rxb3+ {[%clk 0:01:09.4]} 45. Kf2 {[%clk 0:00:24.6]} 45... Rf7 {[%clk 0:01:04.8]}
46. R6d5 {[%clk 0:00:07.3]} 46... Rxf4+ {[%clk 0:01:04.1]} 47. Kg1 {[%clk
0:00:09.2]} 47... Nc6 {[%clk 0:00:56.9]} 48. Rc4 {[%clk 0:00:10]} 48... Nb4
{[%clk 0:00:47.1]} 49. Rxa5 {[%clk 0:00:11.1]} 49... Nd3 {[%clk 0:00:34.8]} 50.
Kh2 {[%clk 0:00:09]} 50... Nf2 {[%clk 0:00:27.8]} 51. Rb4 {[%clk 0:00:05.2]}
51... Ng4+ {[%clk 0:00:21.3]} 52. hxg4 {[%clk 0:00:06]} 52... Rxb4 {[%clk
0:00:23.1]} 53. g3+ {[%clk 0:00:07.1]} 53... Kxg4 {[%clk 0:00:24.6]} 54. gxf4
{[%clk 0:00:08.8]} 54... Kxf4 {[%clk 0:00:26.5]} 55. e5 {[%clk 0:00:09.9]} 55...
Re4 {[%clk 0:00:27.5]} 56. Ra6 {[%clk 0:00:10.5]} 56... Kg5 {[%clk 0:00:25.9]}
57. e6 {[%clk 0:00:11.7]} 57... Kf6 {[%clk 0:00:25.3]} 58. e7+ {[%clk
0:00:12.9]} 58... Kf7 {[%clk 0:00:26.9]} 59. Kg3 {[%clk 0:00:12.5]} 59... Rxe7
{[%clk 0:00:27.6]} 60. Kf4 {[%clk 0:00:13.7]} 60... Re6 {[%clk 0:00:29.1]} 61.
Ra8 {[%clk 0:00:13.6]} 61... Kf6 {[%clk 0:00:30.7]} 62. Rf8+ {[%clk 0:00:14.9]}
62... Kg7 {[%clk 0:00:32.3]} 63. Ra8 {[%clk 0:00:16.5]} 63... Rf6+ {[%clk
0:00:33.9]} 0-1

[Event "*** MasterClass Titled Tuesday Blitz"]
[Site "Chess.com"]
[Date "2017.12.05"]
[Round "5"]
[White "JoachimBN"]
[Black "GMKrikor"]
[Result "1-0"]
[WhiteElo "2528"]
[BlackElo "2633"]
[TimeControl "180+2"]
[EndTime "15:18:18 PST"]
[Termination "JoachimBN won by resignation"]

1. d4 {[%clk 0:03:01.9]} 1... Nf6 {[%clk 0:02:59.4]} 2. Bf4 {[%clk 0:02:49.9]}
2... d5 {[%clk 0:02:57.9]} 3. e3 {[%clk 0:02:49.4]} 3... c5 {[%clk 0:02:59.3]}
4. Nd2 {[%clk 0:02:49.2]} 4... Nc6 {[%clk 0:02:59.9]} 5. c3 {[%clk 0:02:50.2]}
5... cxd4 {[%clk 0:02:31.8]} 6. exd4 {[%clk 0:02:11.2]} 6... Bf5 {[%clk
0:02:31.8]} 7. Qb3 {[%clk 0:02:11.2]} 7... Qc8 {[%clk 0:02:32.5]} 8. Ngf3 {[%clk
0:02:11.4]} 8... e6 {[%clk 0:02:33.7]} 9. Nh4 {[%clk 0:02:12]} 9... Bg4 {[%clk
0:02:31.6]} 10. f3 {[%clk 0:02:13.2]} 10... Bh5 {[%clk 0:02:32.6]} 11. g4 {[%clk
0:02:14.6]} 11... Bg6 {[%clk 0:02:34]} 12. Nxg6 {[%clk 0:01:49.1]} 12... hxg6
{[%clk 0:02:33.8]} 13. Be2 {[%clk 0:01:51]} 13... Qd7 {[%clk 0:02:22.5]} 14.
O-O-O {[%clk 0:01:47.6]} 14... Bd6 {[%clk 0:02:17.5]} 15. Bg3 {[%clk 0:01:30.2]}
15... g5 {[%clk 0:02:00.8]} 16. Kb1 {[%clk 0:01:25.6]} 16... O-O-O {[%clk
0:01:57]} 17. Qa4 {[%clk 0:01:22.8]} 17... Kb8 {[%clk 0:01:53.1]} 18. Nb3 {[%clk
0:01:17.2]} 18... Qc7 {[%clk 0:01:53.4]} 19. Nc5 {[%clk 0:01:16.5]} 19... Ka8
{[%clk 0:01:38.4]} 20. Bb5 {[%clk 0:01:14.5]} 20... Nb8 {[%clk 0:01:02.6]} 21.
Nd3 {[%clk 0:01:01]} 21... a6 {[%clk 0:00:56]} 22. Ne5 {[%clk 0:00:55]} 22...
Rhf8 {[%clk 0:00:42.1]} 23. Rhe1 {[%clk 0:00:53.1]} 23... Nfd7 {[%clk
0:00:34.7]} 24. Nxd7 {[%clk 0:00:32]} 24... Nxd7 {[%clk 0:00:30.4]} 25. Bxd6
{[%clk 0:00:33.2]} 25... Qxd6 {[%clk 0:00:31.2]} 26. Bxd7 {[%clk 0:00:33.8]}
26... Qxd7 {[%clk 0:00:31.6]} 27. Qxd7 {[%clk 0:00:34.4]} 27... Rxd7 {[%clk
0:00:33.1]} 28. Re5 {[%clk 0:00:34.2]} 28... Rh8 {[%clk 0:00:34.4]} 29. Rxg5
{[%clk 0:00:30.1]} 29... f6 {[%clk 0:00:28.5]} 30. Rh5 {[%clk 0:00:31.2]} 30...
Rdd8 {[%clk 0:00:21.2]} 31. Rxh8 {[%clk 0:00:29.9]} 31... Rxh8 {[%clk
0:00:21.9]} 32. Re1 {[%clk 0:00:31.8]} 32... Re8 {[%clk 0:00:11.8]} 33. h4
{[%clk 0:00:29.3]} 33... Kb8 {[%clk 0:00:12.9]} 34. h5 {[%clk 0:00:23.2]} 34...
Kc7 {[%clk 0:00:14.1]} 35. f4 {[%clk 0:00:24.1]} 35... Kd6 {[%clk 0:00:15.3]}
36. Kc2 {[%clk 0:00:23.8]} 36... Rh8 {[%clk 0:00:16.5]} 37. Kd3 {[%clk
0:00:24.4]} 37... f5 {[%clk 0:00:08.6]} 38. gxf5 {[%clk 0:00:25.4]} 38... exf5
{[%clk 0:00:09.9]} 39. Rg1 {[%clk 0:00:20.9]} 39... Rxh5 {[%clk 0:00:08.7]} 40.
Rg6+ {[%clk 0:00:22.3]} 40... Kd7 {[%clk 0:00:06.2]} 41. Rxg7+ {[%clk
0:00:24.2]} 41... Kc6 {[%clk 0:00:07.7]} 42. Rg6+ {[%clk 0:00:23.2]} 42... Kd7
{[%clk 0:00:07.6]} 43. Rg5 {[%clk 0:00:21.5]} 43... Rh3+ {[%clk 0:00:05.5]} 44.
Kc2 {[%clk 0:00:21.4]} 44... Ke6 {[%clk 0:00:06.3]} 45. Rg6+ {[%clk 0:00:22.1]}
45... Ke7 {[%clk 0:00:07.7]} 46. Rb6 {[%clk 0:00:22.8]} 46... Rf3 {[%clk
0:00:08.3]} 47. Rxb7+ {[%clk 0:00:23.7]} 47... Ke6 {[%clk 0:00:09]} 48. Rb6+
{[%clk 0:00:24.6]} 48... Ke7 {[%clk 0:00:10.6]} 49. Rxa6 {[%clk 0:00:26]} 49...
Rxf4 {[%clk 0:00:12.5]} 50. Kd3 {[%clk 0:00:26.6]} 50... Rf2 {[%clk 0:00:11.6]}
51. b4 {[%clk 0:00:27.8]} 51... f4 {[%clk 0:00:12.1]} 52. a4 {[%clk 0:00:29]}
52... Rf1 {[%clk 0:00:11]} 53. a5 {[%clk 0:00:29.1]} 53... Kf7 {[%clk
0:00:08.1]} 54. Rd6 {[%clk 0:00:28.5]} 54... f3 {[%clk 0:00:04.2]} 55. Rxd5
{[%clk 0:00:28.5]} 55... Ke6 {[%clk 0:00:02.5]} 56. Re5+ {[%clk 0:00:29.1]}
56... Kd6 {[%clk 0:00:04.2]} 57. Rf5 {[%clk 0:00:30.1]} 1-0

[Event "*** MasterClass Titled Tuesday Blitz"]
[Site "Chess.com"]
[Date "2017.12.05"]
[Round "5"]
[White "Scott-fox21"]
[Black "ncdogan"]
[Result "1/2-1/2"]
[WhiteElo "2204"]
[BlackElo "2397"]
[TimeControl "180+2"]
[EndTime "15:18:27 PST"]
[Termination "Game drawn by agreement"]

1. d4 {[%clk 0:03:01.9]} 1... Nf6 {[%clk 0:03:00.6]} 2. c4 {[%clk 0:03:03.1]}
2... e6 {[%clk 0:03:01.8]} 3. Nc3 {[%clk 0:03:04]} 3... Bb4 {[%clk 0:03:02.4]}
4. a3 {[%clk 0:03:05]} 4... Bxc3+ {[%clk 0:03:03.4]} 5. bxc3 {[%clk 0:03:06.9]}
5... O-O {[%clk 0:03:04.3]} 6. e3 {[%clk 0:03:07.8]} 6... b6 {[%clk 0:03:03.7]}
7. Bd3 {[%clk 0:03:09.2]} 7... Nc6 {[%clk 0:03:04.4]} 8. e4 {[%clk 0:03:09.9]}
8... d6 {[%clk 0:03:05]} 9. Bg5 {[%clk 0:03:10.7]} 9... h6 {[%clk 0:03:03.1]}
10. Bh4 {[%clk 0:03:11.3]} 10... e5 {[%clk 0:02:55]} 11. Nf3 {[%clk 0:03:11.2]}
11... Ba6 {[%clk 0:02:53.3]} 12. O-O {[%clk 0:03:10.5]} 12... Qe7 {[%clk
0:02:53.9]} 13. Qd2 {[%clk 0:03:08.3]} 13... Na5 {[%clk 0:02:53.7]} 14. Qe2
{[%clk 0:03:08.6]} 14... c5 {[%clk 0:02:45.3]} 15. Nd2 {[%clk 0:03:06]} 15... g5
{[%clk 0:02:41.3]} 16. Bg3 {[%clk 0:03:04.5]} 16... Rac8 {[%clk 0:02:42.8]} 17.
Nf3 {[%clk 0:02:47.6]} 17... Nd7 {[%clk 0:02:29]} 18. dxe5 {[%clk 0:02:45.8]}
18... dxe5 {[%clk 0:02:28.9]} 19. Nd2 {[%clk 0:02:45.5]} 19... Qe6 {[%clk
0:02:22.5]} 20. h4 {[%clk 0:02:43]} 20... f6 {[%clk 0:02:23.2]} 21. Qh5 {[%clk
0:02:43]} 21... Kg7 {[%clk 0:02:21.7]} 22. Be2 {[%clk 0:02:41.3]} 22... Qf7
{[%clk 0:02:15.4]} 23. Qg4 {[%clk 0:02:39.5]} 23... Rcd8 {[%clk 0:02:10.5]} 24.
Rad1 {[%clk 0:02:39.3]} 24... Nb8 {[%clk 0:02:06.3]} 25. Nf3 {[%clk 0:02:29.7]}
25... h5 {[%clk 0:02:05.1]} 26. Qf5 {[%clk 0:02:17.5]} 26... Bc8 {[%clk
0:02:01.3]} 27. Nxg5 {[%clk 0:02:17.4]} 27... Bxf5 {[%clk 0:01:57.3]} 28. Nxf7
{[%clk 0:02:18.5]} 28... Rxd1 {[%clk 0:01:55.8]} 29. Rxd1 {[%clk 0:02:16.6]}
29... Bxe4 {[%clk 0:01:51]} 30. Nd8 {[%clk 0:02:12]} 30... Rh8 {[%clk
0:01:42.8]} 31. Ne6+ {[%clk 0:02:04.7]} 31... Kf7 {[%clk 0:01:43.8]} 32. Nc7
{[%clk 0:02:05.8]} 32... Bg6 {[%clk 0:01:18.3]} 33. Nb5 {[%clk 0:02:00.9]} 33...
a6 {[%clk 0:01:12]} 34. Nd6+ {[%clk 0:02:01.7]} 34... Ke6 {[%clk 0:01:13.2]} 35.
Rd2 {[%clk 0:01:51.4]} 35... Rd8 {[%clk 0:01:08.7]} 36. Ne4 {[%clk 0:01:52.5]}
36... Rxd2 {[%clk 0:00:58.8]} 37. Nxd2 {[%clk 0:01:54.4]} 37... Nbc6 {[%clk
0:00:54.1]} 38. Bf3 {[%clk 0:01:53.7]} 38... Ne7 {[%clk 0:00:54.7]} 39. Be2
{[%clk 0:01:48.2]} 39... Nf5 {[%clk 0:00:55.3]} 40. Ne4 {[%clk 0:01:39.8]} 40...
Ne7 {[%clk 0:00:45.6]} 41. f3 {[%clk 0:01:36.4]} 41... Bf7 {[%clk 0:00:36.5]}
42. Bf2 {[%clk 0:01:33.2]} 42... Nc8 {[%clk 0:00:29.5]} 43. g4 {[%clk
0:01:31.8]} 43... Nd6 {[%clk 0:00:30.7]} 44. gxh5 {[%clk 0:00:59.9]} 44... Bxh5
{[%clk 0:00:27.1]} 45. Bxc5 {[%clk 0:00:56.1]} 45... Nxe4 {[%clk 0:00:24.3]} 46.
Bxb6 {[%clk 0:00:55.1]} 46... Nxc3 {[%clk 0:00:20.9]} 47. Bxa5 {[%clk
0:00:55.9]} 47... Nxe2+ {[%clk 0:00:22.1]} 48. Kf2 {[%clk 0:00:57.3]} 48... Nd4
{[%clk 0:00:23.8]} 49. c5 {[%clk 0:00:21.2]} 49... Kd5 {[%clk 0:00:23.8]} 50.
Bd8 {[%clk 0:00:17.8]} 50... f5 {[%clk 0:00:24.5]} 51. Bf6 {[%clk 0:00:18.3]}
51... Bxf3 {[%clk 0:00:21]} 52. c6 {[%clk 0:00:16.1]} 52... Ke6 {[%clk
0:00:17.1]} 53. c7 {[%clk 0:00:16.6]} 53... Bb7 {[%clk 0:00:18.4]} 54. Bg7
{[%clk 0:00:15.1]} 54... Nb5 {[%clk 0:00:17.9]} 55. h5 {[%clk 0:00:15.2]} 55...
Kf7 {[%clk 0:00:18.3]} 56. h6 {[%clk 0:00:16.4]} 56... Nxc7 {[%clk 0:00:18.7]}
57. Bxe5 {[%clk 0:00:17]} 57... Kg6 {[%clk 0:00:10]} 58. Bxc7 {[%clk 0:00:18.1]}
58... Kxh6 {[%clk 0:00:11.6]} 59. Ke3 {[%clk 0:00:19.3]} 59... Kg6 {[%clk
0:00:13.5]} 60. Kf4 {[%clk 0:00:15.6]} 60... Be4 {[%clk 0:00:13.4]} 61. Bd6
{[%clk 0:00:16.5]} 61... Kf7 {[%clk 0:00:15.3]} 62. Bb4 {[%clk 0:00:16.7]} 62...
Ke6 {[%clk 0:00:17.2]} 63. Bc5 {[%clk 0:00:17.7]} 63... Kd5 {[%clk 0:00:19.1]}
64. Be7 {[%clk 0:00:18.9]} 64... Kc4 {[%clk 0:00:20.3]} 65. Bf8 {[%clk
0:00:20.3]} 65... Kb3 {[%clk 0:00:22]} 66. Be7 {[%clk 0:00:21.7]} 1/2-1/2